[Event "Early-Titled-Tuesday-Blitz-January-23-2024"]
[Site "Chess.com"]
[Date "2024.01.23"]
[Round "3"]
[White "Harry_Rakkel"]
[Black "Roedor"]
[Result "1-0"]
[WhiteElo "2656"]
[BlackElo "2305"]
[TimeControl "180+1"]
[EndTime "8:23:10 PST"]
[Termination "Harry_Rakkel won by resignation"]

1. e4 {[%clk 0:03:00.9]} 1... e5 {[%clk 0:02:57.1]} 2. Nf3 {[%clk 0:03:00]} 2...
Nc6 {[%clk 0:02:56.3]} 3. Bc4 {[%clk 0:02:59.2]} 3... Bc5 {[%clk 0:02:55.9]} 4.
d3 {[%clk 0:02:55.8]} 4... Nf6 {[%clk 0:02:55.8]} 5. O-O {[%clk 0:02:54.6]} 5...
d6 {[%clk 0:02:55.6]} 6. c3 {[%clk 0:02:53.4]} 6... a5 {[%clk 0:02:54.4]} 7.
Nbd2 {[%clk 0:02:46.3]} 7... Ba7 {[%clk 0:02:54.2]} 8. h3 {[%clk 0:02:42.9]}
8... Rg8 {[%clk 0:02:52.8]} 9. Ng5 {[%clk 0:02:15.2]} 9... d5 {[%clk 0:02:38.1]}
10. exd5 {[%clk 0:02:12.6]} 10... Nxd5 {[%clk 0:02:38.1]} 11. Qh5 {[%clk
0:01:57]} 11... g6 {[%clk 0:02:19.9]} 12. Qxh7 {[%clk 0:01:50.6]} 12... Rf8
{[%clk 0:02:19.9]} 13. Nde4 {[%clk 0:01:48]} 1-0

[Event "Early-Titled-Tuesday-Blitz-January-23-2024"]
[Site "Chess.com"]
[Date "2024.01.23"]
[Round "3"]
[White "Viktor_Poddubnyi"]
[Black "GiorgianBarbosa"]
[Result "1-0"]
[WhiteElo "2262"]
[BlackElo "2440"]
[TimeControl "180+1"]
[EndTime "8:23:19 PST"]
[Termination "Viktor_Poddubnyi won by resignation"]

1. e4 {[%clk 0:03:00.9]} 1... c6 {[%clk 0:03:00.1]} 2. d4 {[%clk 0:03:00.5]}
2... d5 {[%clk 0:03:01]} 3. exd5 {[%clk 0:03:01.4]} 3... cxd5 {[%clk 0:03:01.7]}
4. c4 {[%clk 0:03:02.1]} 4... Nf6 {[%clk 0:03:02.6]} 5. Nc3 {[%clk 0:03:02.8]}
5... e6 {[%clk 0:03:02.6]} 6. Nf3 {[%clk 0:03:02.2]} 6... Be7 {[%clk 0:03:02.8]}
7. cxd5 {[%clk 0:03:02.7]} 7... Nxd5 {[%clk 0:03:02.7]} 8. Bc4 {[%clk
0:03:03.3]} 8... O-O {[%clk 0:03:02]} 9. O-O {[%clk 0:03:02.6]} 9... Nc6 {[%clk
0:03:02.3]} 10. Re1 {[%clk 0:02:59.1]} 10... b6 {[%clk 0:02:57.6]} 11. Nxd5
{[%clk 0:02:49.8]} 11... exd5 {[%clk 0:02:58.5]} 12. Bb5 {[%clk 0:02:50.1]}
12... Bb7 {[%clk 0:02:52.7]} 13. Qa4 {[%clk 0:02:32.7]} 13... h6 {[%clk
0:02:53.6]} 14. Bxc6 {[%clk 0:02:31.9]} 14... Bxc6 {[%clk 0:02:51.6]} 15. Qxc6
{[%clk 0:02:32.8]} 15... Rc8 {[%clk 0:02:49.5]} 16. Qa4 {[%clk 0:02:30.8]} 16...
Rc7 {[%clk 0:02:49.3]} 17. Be3 {[%clk 0:02:24.4]} 17... Bf6 {[%clk 0:02:39.3]}
18. Rac1 {[%clk 0:02:22.8]} 18... Rxc1 {[%clk 0:02:35.6]} 19. Rxc1 {[%clk
0:02:23.7]} 19... Re8 {[%clk 0:02:35.1]} 20. Qxa7 {[%clk 0:02:17.9]} 20... g5
{[%clk 0:02:33.6]} 21. Qc7 {[%clk 0:02:04.4]} 21... Qa8 {[%clk 0:02:31.6]} 22.
Qc6 {[%clk 0:01:55.9]} 22... Qxc6 {[%clk 0:02:23.2]} 23. Rxc6 {[%clk 0:01:56.8]}
1-0

[Event "Early-Titled-Tuesday-Blitz-January-23-2024"]
[Site "Chess.com"]
[Date "2024.01.23"]
[Round "3"]
[White "Sychev_Klementy"]
[Black "winniethepooh04"]
[Result "1-0"]
[WhiteElo "2771"]
[BlackElo "2444"]
[TimeControl "180+1"]
[EndTime "8:23:26 PST"]
[Termination "Sychev_Klementy won by resignation"]

1. e4 {[%clk 0:02:55.2]} 1... e6 {[%clk 0:02:32.3]} 2. Qe2 {[%clk 0:02:53.1]}
2... d5 {[%clk 0:02:32.8]} 3. exd5 {[%clk 0:02:54]} 3... Qxd5 {[%clk 0:02:33]}
4. Nc3 {[%clk 0:02:54.7]} 4... Qd8 {[%clk 0:02:32.8]} 5. Nf3 {[%clk 0:02:55.4]}
5... Nf6 {[%clk 0:02:32.5]} 6. g4 {[%clk 0:02:56.1]} 6... Nxg4 {[%clk
0:02:32.1]} 7. Rg1 {[%clk 0:02:55.7]} 7... Nf6 {[%clk 0:02:32]} 8. d4 {[%clk
0:02:56.4]} 8... Nbd7 {[%clk 0:02:29.3]} 9. Bf4 {[%clk 0:02:50.9]} 9... c5
{[%clk 0:02:29]} 10. O-O-O {[%clk 0:02:48.2]} 10... a6 {[%clk 0:02:28.2]} 11.
dxc5 {[%clk 0:02:47.6]} 11... Bxc5 {[%clk 0:02:22.8]} 12. Rxg7 {[%clk
0:02:45.9]} 12... Qa5 {[%clk 0:02:17.7]} 13. Rxf7 {[%clk 0:02:40.1]} 13... Kxf7
{[%clk 0:02:14.7]} 14. Ng5+ {[%clk 0:02:40.1]} 14... Kg6 {[%clk 0:02:05.5]} 15.
Qxe6 {[%clk 0:02:38.6]} 15... Rf8 {[%clk 0:01:50.6]} 16. Bd3+ {[%clk 0:02:37.2]}
16... Kg7 {[%clk 0:01:51]} 17. Rg1 {[%clk 0:02:36.8]} 17... Kh8 {[%clk
0:01:45.9]} 18. Nf7+ {[%clk 0:02:27.8]} 18... Rxf7 {[%clk 0:01:45.8]} 19. Qxf7
{[%clk 0:02:28.7]} 19... Bf8 {[%clk 0:01:40.3]} 20. Bxh7 {[%clk 0:02:28.3]} 1-0

[Event "Early-Titled-Tuesday-Blitz-January-23-2024"]
[Site "Chess.com"]
[Date "2024.01.23"]
[Round "3"]
[White "Skatchkov_V"]
[Black "LastHeroJr"]
[Result "1-0"]
[WhiteElo "2626"]
[BlackElo "2432"]
[TimeControl "180+1"]
[EndTime "8:23:51 PST"]
[Termination "Skatchkov_V won by resignation"]

1. d4 {[%clk 0:03:00.9]} 1... d5 {[%clk 0:02:52.1]} 2. c4 {[%clk 0:02:59]} 2...
e6 {[%clk 0:02:51.7]} 3. Nf3 {[%clk 0:02:57.8]} 3... Nf6 {[%clk 0:02:51.9]} 4.
g3 {[%clk 0:02:55.5]} 4... Be7 {[%clk 0:02:52.4]} 5. Bg2 {[%clk 0:02:54.8]} 5...
O-O {[%clk 0:02:51.6]} 6. Nc3 {[%clk 0:02:55.1]} 6... c6 {[%clk 0:02:51.7]} 7.
O-O {[%clk 0:02:51.2]} 7... Nbd7 {[%clk 0:02:51.7]} 8. Qd3 {[%clk 0:02:44.7]}
8... b6 {[%clk 0:02:49.4]} 9. e4 {[%clk 0:02:40.5]} 9... Ba6 {[%clk 0:02:49.5]}
10. b3 {[%clk 0:02:39.7]} 10... c5 {[%clk 0:02:46.1]} 11. exd5 {[%clk
0:02:33.4]} 11... exd5 {[%clk 0:02:41.2]} 12. Rd1 {[%clk 0:02:16.8]} 12... dxc4
{[%clk 0:02:38.7]} 13. bxc4 {[%clk 0:02:15.5]} 13... cxd4 {[%clk 0:02:37]} 14.
Nxd4 {[%clk 0:02:14.8]} 14... Rc8 {[%clk 0:02:26.1]} 15. Nc6 {[%clk 0:02:10.5]}
15... Qe8 {[%clk 0:02:21.5]} 16. Re1 {[%clk 0:02:02.5]} 16... Nc5 {[%clk
0:02:20.6]} 17. Qf3 {[%clk 0:02:02.2]} 17... Ne6 {[%clk 0:02:10.9]} 18. Nxe7+
{[%clk 0:01:56.2]} 18... Qxe7 {[%clk 0:02:11]} 19. Nd5 {[%clk 0:01:57.1]} 19...
Nxd5 {[%clk 0:02:05.9]} 20. cxd5 {[%clk 0:01:56.8]} 20... Qb4 {[%clk 0:02:06.8]}
21. Ba3 {[%clk 0:01:55.1]} 1-0

[Event "Early-Titled-Tuesday-Blitz-January-23-2024"]
[Site "Chess.com"]
[Date "2024.01.23"]
[Round "3"]
[White "LangesNasenhaar"]
[Black "HajiyevKanan"]
[Result "0-1"]
[WhiteElo "2427"]
[BlackElo "2606"]
[TimeControl "180+1"]
[EndTime "8:24:42 PST"]
[Termination "HajiyevKanan won by resignation"]

1. d4 {[%clk 0:02:57.5]} 1... d5 {[%clk 0:02:55.7]} 2. Nc3 {[%clk 0:02:57.5]}
2... c6 {[%clk 0:02:55.6]} 3. Bf4 {[%clk 0:02:57.3]} 3... a6 {[%clk 0:02:56.3]}
4. e3 {[%clk 0:02:57.1]} 4... Nf6 {[%clk 0:02:56.5]} 5. Nf3 {[%clk 0:02:57.6]}
5... Bg4 {[%clk 0:02:56.9]} 6. h3 {[%clk 0:02:55.7]} 6... Bxf3 {[%clk
0:02:55.3]} 7. Qxf3 {[%clk 0:02:55.8]} 7... e6 {[%clk 0:02:56.2]} 8. Bd3 {[%clk
0:02:51.5]} 8... Bd6 {[%clk 0:02:54.9]} 9. O-O-O {[%clk 0:02:51.7]} 9... Bxf4
{[%clk 0:02:52.5]} 10. exf4 {[%clk 0:02:50.2]} 10... Nbd7 {[%clk 0:02:51.8]} 11.
f5 {[%clk 0:02:47]} 11... exf5 {[%clk 0:02:51.8]} 12. Bxf5 {[%clk 0:02:45.5]}
12... O-O {[%clk 0:02:51.4]} 13. g4 {[%clk 0:02:44.2]} 13... Re8 {[%clk
0:02:51.1]} 14. g5 {[%clk 0:02:38.9]} 14... Ne4 {[%clk 0:02:50.8]} 15. Nxe4
{[%clk 0:02:26]} 15... dxe4 {[%clk 0:02:51]} 16. Bxe4 {[%clk 0:02:25.8]} 16...
Qxg5+ {[%clk 0:02:50.5]} 17. Kb1 {[%clk 0:02:26.1]} 17... Nf6 {[%clk 0:02:47.8]}
18. Bd3 {[%clk 0:02:24.4]} 18... Qd5 {[%clk 0:02:42.7]} 19. Qg3 {[%clk
0:02:14.6]} 19... Ne4 {[%clk 0:02:25.3]} 20. Bxe4 {[%clk 0:02:04.2]} 20... Rxe4
{[%clk 0:02:23.8]} 21. Rhg1 {[%clk 0:01:59.1]} 21... g6 {[%clk 0:02:21.1]} 22.
c3 {[%clk 0:01:56.8]} 22... Rae8 {[%clk 0:02:17.4]} 23. a3 {[%clk 0:01:47.1]}
23... Re2 {[%clk 0:02:09.1]} 24. Qd3 {[%clk 0:01:27.8]} 24... Rxf2 {[%clk
0:01:57.2]} 25. Ka1 {[%clk 0:01:19.6]} 25... Ree2 {[%clk 0:01:53.4]} 26. Rb1
{[%clk 0:01:19.2]} 26... Qb3 {[%clk 0:01:53]} 27. Qg3 {[%clk 0:01:10.3]} 27...
Qxa3+ {[%clk 0:01:42.6]} 0-1

[Event "Early-Titled-Tuesday-Blitz-January-23-2024"]
[Site "Chess.com"]
[Date "2024.01.23"]
[Round "3"]
[White "Chessdreamer2020"]
[Black "fks_stal_mielec"]
[Result "1-0"]
[WhiteElo "2548"]
[BlackElo "2250"]
[TimeControl "180+1"]
[EndTime "8:24:44 PST"]
[Termination "Chessdreamer2020 won by resignation"]

1. e4 {[%clk 0:03:00.9]} 1... c5 {[%clk 0:02:57.5]} 2. Nf3 {[%clk 0:03:01.2]}
2... Nc6 {[%clk 0:02:55.9]} 3. Bb5 {[%clk 0:03:01.1]} 3... Nd4 {[%clk
0:02:54.9]} 4. Nxd4 {[%clk 0:03:00.9]} 4... cxd4 {[%clk 0:02:55.8]} 5. O-O
{[%clk 0:03:01.8]} 5... g6 {[%clk 0:02:51.5]} 6. d3 {[%clk 0:03:01.9]} 6... Bg7
{[%clk 0:02:51.2]} 7. Nd2 {[%clk 0:03:02.4]} 7... Qb6 {[%clk 0:02:51.1]} 8. Bc4
{[%clk 0:03:02.2]} 8... e6 {[%clk 0:02:47]} 9. f4 {[%clk 0:03:02.4]} 9... Ne7
{[%clk 0:02:46.1]} 10. Nf3 {[%clk 0:03:02.5]} 10... d6 {[%clk 0:02:44]} 11. a4
{[%clk 0:02:51.5]} 11... a6 {[%clk 0:02:42.6]} 12. a5 {[%clk 0:02:51.5]} 12...
Qb4 {[%clk 0:02:36.9]} 13. Bd2 {[%clk 0:02:37.8]} 13... Qc5 {[%clk 0:02:34.5]}
14. b4 {[%clk 0:02:36.3]} 14... Qc7 {[%clk 0:02:34.1]} 15. e5 {[%clk 0:02:10]}
15... d5 {[%clk 0:02:23.5]} 16. Bb3 {[%clk 0:02:09.1]} 16... O-O {[%clk
0:02:10.3]} 17. Nxd4 {[%clk 0:02:07.5]} 17... f6 {[%clk 0:02:08.1]} 18. Nf3
{[%clk 0:02:05.7]} 18... fxe5 {[%clk 0:02:06.3]} 19. Nxe5 {[%clk 0:02:04.8]}
19... Bxe5 {[%clk 0:02:04.8]} 20. fxe5 {[%clk 0:02:05.7]} 20... Qxe5 {[%clk
0:02:04.9]} 21. Rxf8+ {[%clk 0:02:05.3]} 21... Kxf8 {[%clk 0:02:04.1]} 22. Qf3+
{[%clk 0:02:00]} 22... Kg7 {[%clk 0:01:56.9]} 23. Rf1 {[%clk 0:02:00]} 23... Qf5
{[%clk 0:01:50.6]} 24. Qg3 {[%clk 0:01:49.5]} 24... Qh5 {[%clk 0:01:41.9]} 25.
Qc7 {[%clk 0:01:42.6]} 25... Qh4 {[%clk 0:01:22.5]} 26. Rf4 {[%clk 0:01:41.5]}
26... Qg5 {[%clk 0:01:18.5]} 27. Rf7+ {[%clk 0:01:40.9]} 27... Kxf7 {[%clk
0:01:18.6]} 28. Bxg5 {[%clk 0:01:41.7]} 1-0

[Event "Early-Titled-Tuesday-Blitz-January-23-2024"]
[Site "Chess.com"]
[Date "2024.01.23"]
[Round "3"]
[White "ChainedDowntohell"]
[Black "platy3"]
[Result "0-1"]
[WhiteElo "2562"]
[BlackElo "2864"]
[TimeControl "180+1"]
[EndTime "8:25:09 PST"]
[Termination "platy3 won by checkmate"]

1. d4 {[%clk 0:03:00.9]} 1... Nf6 {[%clk 0:02:58.9]} 2. c4 {[%clk 0:03:00.5]}
2... e6 {[%clk 0:02:59.1]} 3. Nf3 {[%clk 0:03:00.6]} 3... d5 {[%clk 0:02:59]} 4.
Nc3 {[%clk 0:03:00.2]} 4... dxc4 {[%clk 0:02:55.8]} 5. e3 {[%clk 0:02:57.8]}
5... a6 {[%clk 0:02:55.1]} 6. Bxc4 {[%clk 0:02:54.5]} 6... b5 {[%clk 0:02:54.5]}
7. Bd3 {[%clk 0:02:54.6]} 7... Bb7 {[%clk 0:02:54]} 8. O-O {[%clk 0:02:47]} 8...
c5 {[%clk 0:02:54.2]} 9. e4 {[%clk 0:02:38.2]} 9... cxd4 {[%clk 0:02:52]} 10. e5
{[%clk 0:01:49.7]} 10... dxc3 {[%clk 0:02:41.9]} 11. exf6 {[%clk 0:01:49.5]}
11... gxf6 {[%clk 0:02:41.7]} 12. Qe2 {[%clk 0:01:34.5]} 12... Rg8 {[%clk
0:02:38.9]} 13. Be4 {[%clk 0:01:34.4]} 13... Bxe4 {[%clk 0:02:30.7]} 14. Qxe4
{[%clk 0:01:35.3]} 14... Qd5 {[%clk 0:02:29.6]} 15. Qxh7 {[%clk 0:01:18.9]}
15... Rg7 {[%clk 0:02:28.6]} 16. Qh4 {[%clk 0:01:15.7]} 16... Qxf3 {[%clk
0:02:27.3]} 17. g3 {[%clk 0:01:05.6]} 17... Nc6 {[%clk 0:02:23.6]} 18. a4 {[%clk
0:00:58.4]} 18... Ne5 {[%clk 0:02:14.5]} 19. axb5 {[%clk 0:00:43.3]} 19... Qd5
{[%clk 0:02:13.9]} 20. Qxf6 {[%clk 0:00:27.6]} 20... Nf3+ {[%clk 0:02:11.4]} 21.
Kh1 {[%clk 0:00:27.6]} 21... Nxh2+ {[%clk 0:02:05]} 22. Kg1 {[%clk 0:00:27.4]}
22... Nf3+ {[%clk 0:02:01.4]} 23. Kh1 {[%clk 0:00:22.7]} 23... Rh7+ {[%clk
0:02:00.9]} 24. Kg2 {[%clk 0:00:19]} 24... Rh2# {[%clk 0:02:00.1]} 0-1

[Event "Early-Titled-Tuesday-Blitz-January-23-2024"]
[Site "Chess.com"]
[Date "2024.01.23"]
[Round "3"]
[White "noblerone"]
[Black "GMBenjaminBok"]
[Result "0-1"]
[WhiteElo "2524"]
[BlackElo "2905"]
[TimeControl "180+1"]
[EndTime "8:25:21 PST"]
[Termination "GMBenjaminBok won by resignation"]

1. d4 {[%clk 0:02:53.9]} 1... Nf6 {[%clk 0:03:00]} 2. c4 {[%clk 0:02:48.4]} 2...
e6 {[%clk 0:03:00.3]} 3. Nc3 {[%clk 0:02:48.1]} 3... Bb4 {[%clk 0:03:00.4]} 4.
Qb3 {[%clk 0:02:48.7]} 4... c5 {[%clk 0:02:59.4]} 5. dxc5 {[%clk 0:02:48.2]}
5... Nc6 {[%clk 0:02:59]} 6. Nf3 {[%clk 0:02:48.1]} 6... Ne4 {[%clk 0:02:58.8]}
7. Bd2 {[%clk 0:02:35.4]} 7... Nxd2 {[%clk 0:02:57.5]} 8. Nxd2 {[%clk
0:02:32.6]} 8... O-O {[%clk 0:02:52.5]} 9. Nf3 {[%clk 0:02:27.2]} 9... Bxc5
{[%clk 0:02:44.5]} 10. e3 {[%clk 0:02:27.5]} 10... b6 {[%clk 0:02:43.6]} 11. a3
{[%clk 0:02:18.8]} 11... Bb7 {[%clk 0:02:43.3]} 12. Bd3 {[%clk 0:02:17.2]} 12...
f5 {[%clk 0:02:43.2]} 13. O-O {[%clk 0:02:14.7]} 13... f4 {[%clk 0:02:32.5]} 14.
Qc2 {[%clk 0:02:11.3]} 14... fxe3 {[%clk 0:01:51.4]} 15. Bxh7+ {[%clk 0:02:03]}
15... Kh8 {[%clk 0:01:51.9]} 16. Bg6 {[%clk 0:01:55.7]} 16... Rxf3 {[%clk
0:01:28.1]} 17. gxf3 {[%clk 0:01:49.5]} 17... Nd4 {[%clk 0:01:23.3]} 18. fxe3
{[%clk 0:01:26.5]} 18... Nxc2 {[%clk 0:01:21.3]} 19. Bxc2 {[%clk 0:01:27.4]}
19... Qg5+ {[%clk 0:01:16.1]} 20. Kh1 {[%clk 0:01:26.5]} 20... Qxe3 {[%clk
0:01:16.1]} 21. Be4 {[%clk 0:01:25.6]} 21... Bxe4 {[%clk 0:01:14.8]} 22. Nxe4
{[%clk 0:01:26.5]} 22... Rf8 {[%clk 0:01:13.8]} 23. Kg2 {[%clk 0:01:26.1]} 23...
Qe2+ {[%clk 0:01:10.6]} 24. Kg3 {[%clk 0:01:26.5]} 24... Qxc4 {[%clk 0:01:07.9]}
25. Rac1 {[%clk 0:01:24.4]} 25... Qe2 {[%clk 0:00:56]} 26. b4 {[%clk 0:01:23.1]}
26... Bd6+ {[%clk 0:00:55.2]} 27. Nxd6 {[%clk 0:01:20.6]} 27... Qe5+ {[%clk
0:00:55.2]} 0-1

[Event "Early-Titled-Tuesday-Blitz-January-23-2024"]
[Site "Chess.com"]
[Date "2024.01.23"]
[Round "3"]
[White "OparinGrigoriy"]
[Black "GMAkobianSTL"]
[Result "1-0"]
[WhiteElo "3036"]
[BlackElo "2753"]
[TimeControl "180+1"]
[EndTime "8:25:23 PST"]
[Termination "OparinGrigoriy won on time"]

1. Nf3 {[%clk 0:03:00.9]} 1... Nf6 {[%clk 0:02:59]} 2. g3 {[%clk 0:03:01.5]}
2... d5 {[%clk 0:02:58.7]} 3. Bg2 {[%clk 0:03:01.4]} 3... c5 {[%clk 0:02:59]} 4.
c4 {[%clk 0:03:01.3]} 4... d4 {[%clk 0:02:58.9]} 5. b4 {[%clk 0:03:01.1]} 5...
Nc6 {[%clk 0:02:58.1]} 6. b5 {[%clk 0:02:57.6]} 6... Na5 {[%clk 0:02:49.5]} 7.
d3 {[%clk 0:02:57.4]} 7... a6 {[%clk 0:02:39.1]} 8. a4 {[%clk 0:02:57.6]} 8...
e6 {[%clk 0:02:11.7]} 9. O-O {[%clk 0:02:57.1]} 9... Be7 {[%clk 0:02:11.6]} 10.
e3 {[%clk 0:02:50.1]} 10... dxe3 {[%clk 0:02:07.7]} 11. Bxe3 {[%clk 0:02:49.8]}
11... O-O {[%clk 0:02:06.6]} 12. Nc3 {[%clk 0:02:49.3]} 12... b6 {[%clk
0:01:57.7]} 13. Ne5 {[%clk 0:02:40.3]} 13... Rb8 {[%clk 0:01:46.6]} 14. Nc6
{[%clk 0:02:37.5]} 14... Nxc6 {[%clk 0:01:45.4]} 15. bxc6 {[%clk 0:02:38.4]}
15... Qc7 {[%clk 0:01:26.5]} 16. Re1 {[%clk 0:02:33.1]} 16... Rd8 {[%clk
0:01:26]} 17. Rb1 {[%clk 0:02:21.7]} 17... h6 {[%clk 0:01:18.2]} 18. a5 {[%clk
0:02:18.8]} 18... bxa5 {[%clk 0:01:10.7]} 19. Rxb8 {[%clk 0:02:18.8]} 19... Qxb8
{[%clk 0:01:10.9]} 20. Na4 {[%clk 0:02:16.6]} 20... Qb4 {[%clk 0:00:52.8]} 21.
c7 {[%clk 0:02:16.2]} 21... Rd7 {[%clk 0:00:50]} 22. Bd2 {[%clk 0:02:16.6]}
22... Qa3 {[%clk 0:00:43.3]} 23. Bxa5 {[%clk 0:02:16.4]} 23... Rxd3 {[%clk
0:00:42.2]} 24. Qa1 {[%clk 0:02:05]} 24... Ne8 {[%clk 0:00:13.4]} 25. Nb6 {[%clk
0:02:01.5]} 1-0

[Event "Early-Titled-Tuesday-Blitz-January-23-2024"]
[Site "Chess.com"]
[Date "2024.01.23"]
[Round "3"]
[White "carloseduar100"]
[Black "otrov-11"]
[Result "0-1"]
[WhiteElo "2279"]
[BlackElo "2509"]
[TimeControl "180+1"]
[EndTime "8:25:24 PST"]
[Termination "otrov-11 won by resignation"]

1. g3 {[%clk 0:03:00.6]} 1... Nf6 {[%clk 0:02:59.5]} 2. Bg2 {[%clk 0:03:01.4]}
2... g6 {[%clk 0:03:00.2]} 3. Nf3 {[%clk 0:03:02.1]} 3... Bg7 {[%clk 0:03:00.9]}
4. O-O {[%clk 0:03:03]} 4... O-O {[%clk 0:03:01.4]} 5. d4 {[%clk 0:03:03.9]}
5... d6 {[%clk 0:03:02]} 6. c3 {[%clk 0:03:04.8]} 6... c6 {[%clk 0:03:02.3]} 7.
Nbd2 {[%clk 0:03:05.4]} 7... Nbd7 {[%clk 0:03:01.8]} 8. Re1 {[%clk 0:03:06]}
8... e5 {[%clk 0:03:02.4]} 9. e4 {[%clk 0:03:06.6]} 9... a5 {[%clk 0:02:58]} 10.
Nf1 {[%clk 0:03:06.6]} 10... a4 {[%clk 0:02:57.4]} 11. h4 {[%clk 0:03:06.8]}
11... Re8 {[%clk 0:02:50.9]} 12. dxe5 {[%clk 0:02:57.8]} 12... dxe5 {[%clk
0:02:51.8]} 13. N1h2 {[%clk 0:02:57.4]} 13... Qe7 {[%clk 0:02:50.6]} 14. Bg5
{[%clk 0:02:56.8]} 14... h6 {[%clk 0:02:49.9]} 15. Be3 {[%clk 0:02:56.3]} 15...
Nc5 {[%clk 0:02:49.6]} 16. Qc2 {[%clk 0:02:41.2]} 16... Ng4 {[%clk 0:02:43.4]}
17. Nxg4 {[%clk 0:02:37.3]} 17... Bxg4 {[%clk 0:02:44.3]} 18. Nh2 {[%clk
0:02:35.8]} 18... Be6 {[%clk 0:02:43.5]} 19. Rad1 {[%clk 0:02:34.1]} 19... Bxa2
{[%clk 0:02:42.6]} 20. Qc1 {[%clk 0:02:22.3]} 20... Kh7 {[%clk 0:02:29.6]} 21.
Ng4 {[%clk 0:02:14.3]} 21... h5 {[%clk 0:02:29.6]} 22. Nh2 {[%clk 0:02:14.5]}
22... Bc4 {[%clk 0:02:28.7]} 23. Bg5 {[%clk 0:02:13.5]} 23... f6 {[%clk
0:02:26.9]} 24. Be3 {[%clk 0:02:09.4]} 24... Nd3 {[%clk 0:02:27]} 25. Rxd3
{[%clk 0:02:09.5]} 25... Bxd3 {[%clk 0:02:27.9]} 26. g4 {[%clk 0:02:10.3]} 26...
hxg4 {[%clk 0:02:20.9]} 27. Nxg4 {[%clk 0:02:09.7]} 27... Bc4 {[%clk 0:02:18.6]}
28. Qd1 {[%clk 0:02:01.5]} 28... a3 {[%clk 0:02:11]} 29. bxa3 {[%clk 0:01:59.9]}
29... Rxa3 {[%clk 0:02:11.5]} 30. h5 {[%clk 0:01:46.5]} 30... gxh5 {[%clk
0:02:03.5]} 31. Nh2 {[%clk 0:01:46.4]} 31... Bf7 {[%clk 0:02:04]} 32. Bf3 {[%clk
0:01:46.3]} 32... Rd8 {[%clk 0:01:57.7]} 33. Qc1 {[%clk 0:01:45.4]} 33... Ra2
{[%clk 0:01:49.5]} 34. Kh1 {[%clk 0:01:45.3]} 34... Qa3 {[%clk 0:01:41.7]} 35.
Qb1 {[%clk 0:01:43.6]} 35... Qb2 {[%clk 0:01:40.3]} 36. Qxb2 {[%clk 0:01:38.6]}
36... Rxb2 {[%clk 0:01:41.2]} 37. Nf1 {[%clk 0:01:30.6]} 37... Bh6 {[%clk
0:01:30.6]} 38. Ng3 {[%clk 0:01:21.3]} 38... Bxe3 {[%clk 0:01:29.4]} 39. Rxe3
{[%clk 0:01:21.3]} 39... Rxf2 {[%clk 0:01:25.2]} 0-1

[Event "Early-Titled-Tuesday-Blitz-January-23-2024"]
[Site "Chess.com"]
[Date "2024.01.23"]
[Round "3"]
[White "19912131712118"]
[Black "Doomfist26"]
[Result "0-1"]
[WhiteElo "2428"]
[BlackElo "2606"]
[TimeControl "180+1"]
[EndTime "8:25:25 PST"]
[Termination "Doomfist26 won by resignation"]

1. e4 {[%clk 0:02:58.9]} 1... c5 {[%clk 0:02:57.6]} 2. Nf3 {[%clk 0:02:56]} 2...
d6 {[%clk 0:02:51.8]} 3. d4 {[%clk 0:02:55.8]} 3... cxd4 {[%clk 0:02:52.7]} 4.
Nxd4 {[%clk 0:02:55.6]} 4... Nf6 {[%clk 0:02:52.7]} 5. Nc3 {[%clk 0:02:55.6]}
5... Bd7 {[%clk 0:02:46.5]} 6. f4 {[%clk 0:02:52.5]} 6... e5 {[%clk 0:02:41.2]}
7. fxe5 {[%clk 0:02:51.3]} 7... dxe5 {[%clk 0:02:42.1]} 8. Nf3 {[%clk
0:02:50.1]} 8... Nc6 {[%clk 0:02:31.7]} 9. Bd3 {[%clk 0:02:41.4]} 9... Bc5
{[%clk 0:02:30.7]} 10. Bg5 {[%clk 0:02:36.3]} 10... h6 {[%clk 0:02:29]} 11. Bh4
{[%clk 0:02:35.5]} 11... O-O {[%clk 0:02:28.1]} 12. Rf1 {[%clk 0:02:30.6]} 12...
Be7 {[%clk 0:02:24.1]} 13. Bg3 {[%clk 0:02:15.4]} 13... Bg4 {[%clk 0:02:18.9]}
14. a3 {[%clk 0:02:12.8]} 14... Qb6 {[%clk 0:02:17.7]} 15. Rb1 {[%clk
0:01:54.5]} 15... Rad8 {[%clk 0:02:14.8]} 16. h3 {[%clk 0:01:52.8]} 16... Bh5
{[%clk 0:02:11.8]} 17. Qd2 {[%clk 0:01:41.7]} 17... Rfe8 {[%clk 0:02:04.4]} 18.
Bf2 {[%clk 0:01:39.5]} 18... Qc7 {[%clk 0:01:56]} 19. g4 {[%clk 0:01:38.6]}
19... Bg6 {[%clk 0:01:54.2]} 20. Qe2 {[%clk 0:01:11.2]} 20... Nd4 {[%clk
0:01:54.3]} 21. Nxd4 {[%clk 0:01:07.9]} 21... exd4 {[%clk 0:01:55.2]} 22. Nb5
{[%clk 0:01:07.8]} 22... Qe5 {[%clk 0:01:53.7]} 23. Qf3 {[%clk 0:00:56.5]} 23...
Nxe4 {[%clk 0:01:47.4]} 24. Kd1 {[%clk 0:00:52.1]} 24... a6 {[%clk 0:01:45]} 25.
Nc7 {[%clk 0:00:35.2]} 25... Nxf2+ {[%clk 0:01:40.5]} 26. Rxf2 {[%clk 0:00:31]}
26... Qxc7 {[%clk 0:01:41.4]} 27. Bxg6 {[%clk 0:00:29.9]} 27... fxg6 {[%clk
0:01:42.3]} 0-1